bitfinex-derivatives/quotes_SOLF0:USTF0_20250624
["timestamp","ask_amount","ask_price","bid_price","bid_amount"]
[1750761286602,5.19431062,143.55,143.44,4.5595]
[1750761287007,5.30028353,143.57,143.44,4.5595]
[1750761287210,2.52139656,143.56,143.44,4.5595]
[1750761287401,5.30028353,143.57,143.44,4.5595]
[1750761287602,2.5216072,143.56,143.44,4.5595]
[1750761287800,5.30028353,143.57,143.44,4.5595]
[1750761288003,2.52171676,143.56,143.44,4.5595]
[1750761288293,7.82200029,143.58,143.44,4.5595]
[1750761288497,7.82200029,143.57,143.44,4.5595]
[1750761288694,5.30028353,143.59,143.44,4.5595]
[1750761288907,7.82247326,143.58,143.44,4.5595]
[1750761289106,2.52218973,143.57,143.44,4.5595]
[1750761289314,2.5225597,143.56,143.44,4.5595]
[1750761289501,2.5225597,143.57,143.44,4.5595]
[1750761289701,2.5225597,143.58,143.44,4.5595]
[1750761289997,5.30647919,143.59,143.44,4.5595]
[1750761290195,7.82915262,143.58,143.44,4.5595]
[1750761290396,5.30647919,143.59,143.44,4.5595]
[1750761290597,7.8294872,143.58,143.44,4.5595]
[1750761290902,2.52422863,143.57,143.44,4.5595]
[1750761291102,7.83070782,143.58,143.44,4.5595]
[1750761291305,5.30647919,143.59,143.44,4.5595]
[1750761291600,2.5246794,143.58,143.44,4.5595]
[1750761291801,5.30647919,143.59,143.44,4.5595]
[1750761292213,2.3235,143.6,143.44,4.5595]
[1750761292411,2.52492191,143.59,143.44,4.5595]
[1750761292612,2.3235,143.6,143.44,4.5595]
[1750761292811,2.52491631,143.59,143.44,4.5595]
[1750761293111,2.52487737,143.59,143.44,4.5595]
[1750761294712,2.3235,143.6,143.44,4.5595]
[1750761294911,7.83681382,143.64,143.44,4.5595]
[1750761295110,7.83681382,143.63,143.44,4.5595]
[1750761295306,5.31165674,143.63,143.44,4.5595]
[1750761295504,2.2871,143.64,143.44,25.4595]
[1750761295701,4.81133924,143.64,143.44,25.4595]
[1750761295909,2.2871,143.64,143.44,25.4595]
[1750761296307,4.81027193,143.64,143.44,25.4595]
[1750761296509,2.52296471,143.63,143.44,25.4595]
[1750761297719,2.2871,143.64,143.44,25.4595]
[1750761297917,2.52396468,143.63,143.44,25.4595]
[1750761298119,2.2871,143.64,143.44,25.4595]
[1750761299309,2.2871,143.64,143.44,377.4595]
[1750761301216,4.81133313,143.64,143.44,377.4595]
[1750761301517,2.2871,143.64,143.44,377.4595]
[1750761301717,4.81133313,143.64,143.44,377.4595]
[1750761301917,2.2871,143.64,143.44,377.4595]
[1750761302120,4.80949105,143.64,143.44,377.4595]
[1750761302417,2.2871,143.64,143.44,377.4595]
[1750761302615,4.81010886,143.64,143.44,377.4595]
[1750761302815,2.2871,143.64,143.44,377.4595]
[1750761303219,2.52300886,143.63,143.44,377.4595]
[1750761304619,2.52300886,143.63,143.5,8.64918502]
[1750761304620,7.71582305,143.63,143.5,8.64918502]
[1750761304817,7.71582305,143.63,143.53,8.64918502]
[1750761305017,2.53053225,143.63,143.53,8.64918502]
[1750761305614,5.22103007,143.62,143.53,8.64918502]
[1750761307424,5.22103007,143.63,143.54,8.64918502]
[1750761308522,5.22145355,143.63,143.54,8.64918502]
[1750761308723,7.8526041,143.67,143.56,8.64918502]
[1750761308923,7.75270791,143.66,143.56,8.64918502]
[1750761309424,7.75270791,143.66,143.57,2.3024]
[1750761311127,5.22393397,143.67,143.57,10.95158502]
[1750761311325,114.72070383,143.68,143.58,2.4004]
[1750761311525,114.72070383,143.68,143.58,11.04958502]
[1750761311824,114.72070383,143.68,143.59,8.64918502]
[1750761312429,2.3374,143.69,143.59,8.64918502]
[1750761312625,33.95396463,143.74,143.6,8.64918502]
[1750761312922,7.74894382,143.73,143.61,2.2889]
[1750761313523,5.21965429,143.72,143.61,2.2889]
[1750761313723,7.74894382,143.72,143.61,2.2889]
[1750761313919,7.74894382,143.73,143.61,2.2889]
[1750761314116,7.74726306,143.72,143.61,2.2889]
[1750761314319,7.74726306,143.73,143.61,2.2889]
[1750761314525,5.21538912,143.72,143.61,2.2889]
[1750761314820,7.74726306,143.73,143.61,2.2889]
[1750761315021,5.21538912,143.73,143.61,2.2889]
[1750761315229,2.3941,143.74,143.61,2.2889]
[1750761317321,5.23000333,143.73,143.61,2.2889]
[1750761318335,10.15539021,143.74,143.61,2.2889]
[1750761318531,31.03539021,143.74,143.61,2.2889]
[1750761319027,31.03358745,143.74,143.61,2.2889]
[1750761319232,28.50051898,143.74,143.61,2.2889]
[1750761319433,26.10641898,143.73,143.61,2.2889]
[1750761319629,28.63948745,143.73,143.61,2.2889]
[1750761320943,26.10641898,143.73,143.61,2.2889]
[1750761321639,26.11245537,143.73,143.61,2.2889]
[1750761322340,26.11283037,143.73,143.61,2.2889]
[1750761322540,20.88,143.73,143.61,2.2889]
[1750761323245,26.11283037,143.73,143.61,2.2889]
[1750761324733,5.23283037,143.73,143.61,2.2889]
[1750761324938,7.62693037,143.74,143.61,2.2889]
[1750761325149,28.50693037,143.74,143.61,2.2889]
[1750761326839,5.23283037,143.73,143.61,2.2889]
[1750761327441,26.10892716,143.72,143.61,2.2889]
[1750761327750,20.88,143.72,143.61,2.2889]
[1750761327943,26.10892716,143.72,143.61,2.2889]
[1750761328143,20.88,143.72,143.61,2.2889]
[1750761328444,26.10892716,143.72,143.61,2.2889]
[1750761328643,20.88,143.72,143.61,2.2889]
[1750761328844,26.10892716,143.72,143.61,2.2889]
[1750761329143,20.88,143.72,143.61,2.2889]
[1750761329440,26.10892716,143.72,143.61,2.2889]
[1750761329641,20.88,143.72,143.58,2.4004]
[1750761329841,26.10892716,143.72,143.58,2.4004]
[1750761330044,20.88,143.72,143.58,2.4004]
[1750761330240,4.9278832,143.74,143.58,2.4004]
[1750761330445,20.88,143.72,143.58,2.4004]
[1750761330647,26.10791209,143.72,143.58,2.4004]
[1750761331750,20.88,143.7,143.53,8.64918502]
[1750761331948,20.88,143.68,143.53,4.7623]
[1750761332144,13.08362433,143.69,143.53,4.7623]
[1750761332145,20.88,143.66,143.53,4.7623]
[1750761333336,2.3657,143.67,143.53,4.7623]
[1750761333538,2.3657,143.67,143.53,2.3901]
[1750761334239,13.08483967,143.66,143.53,2.3901]
[1750761334443,13.08483967,143.65,143.53,2.3901]
[1750761334640,5.2278573,143.64,143.53,2.3901]
[1750761334843,5.2278573,143.63,143.53,2.3901]
[1750761335043,5.2278573,143.64,143.53,2.3901]
[1750761335248,5.2278573,143.63,143.53,2.3901]
[1750761335450,2.53424427,143.64,143.53,2.3901]
[1750761335653,5.25120345,143.63,143.53,2.3901]
[1750761335851,7.78544772,143.64,143.53,2.3901]
[1750761336153,5.25120345,143.63,143.53,2.3901]
[1750761336449,2.53424427,143.64,143.53,2.3901]
[1750761336647,7.78834619,143.63,143.53,2.3901]
[1750761336950,5.25410192,143.62,143.53,2.3901]
[1750761337141,13.12677054,143.64,143.53,2.3901]
[1750761337342,7.78834619,143.63,143.53,2.3901]
[1750761337649,5.25410192,143.62,143.53,2.3901]
[1750761337846,2.3657,143.67,143.53,2.3901]
[1750761337847,7.87266862,143.66,143.53,2.3901]
[1750761338046,7.79072625,143.65,143.53,11.03928502]
[1750761338253,5.25648198,143.64,143.53,11.03928502]
[1750761338449,5.25648198,143.64,143.54,8.64918502]
[1750761338845,7.79072625,143.65,143.54,8.64918502]
[1750761339053,5.25648198,143.64,143.54,8.64918502]
[1750761339354,5.23767823,143.64,143.54,8.64918502]
[1750761339752,13.11477893,143.65,143.54,8.64918502]
[1750761340054,7.77044273,143.64,143.54,8.64918502]
[1750761340248,7.77044273,143.65,143.54,8.64918502]
[1750761340445,5.23767823,143.64,143.54,8.64918502]
[1750761342752,7.77044398,143.65,143.54,8.64918502]
[1750761342954,5.23767823,143.64,143.54,8.64918502]
[1750761345043,2.3657,143.67,143.54,8.64918502]
[1750761346157,2.3657,143.67,143.55,8.64918502]
[1750761347157,7.77996973,143.66,143.55,8.64918502]
[1750761347456,2.53510194,143.66,143.55,8.64918502]
[1750761347849,5.24376739,143.65,143.55,8.64918502]
[1750761348456,2.3657,143.67,143.55,8.64918502]
[1750761348661,7.78045559,143.66,143.55,8.64918502]
[1750761348863,5.24510315,143.65,143.55,8.64918502]
[1750761349057,2.53535244,143.65,143.55,8.64918502]
[1750761349661,2.53535244,143.65,143.56,2.215]
[1750761351466,2.53603976,143.65,143.56,2.215]
[1750761353264,5.33645568,143.66,143.56,10.86418502]
[1750761353468,5.25311406,143.65,143.57,2.3039]
[1750761353670,5.33645568,143.66,143.57,2.3039]
[1750761353868,5.25302361,143.65,143.58,2.3264]
[1750761354166,2.3657,143.67,143.58,2.3264]
[1750761354364,7.79130994,143.68,143.58,10.97558502]
[1750761354571,2.3859,143.72,143.58,10.97558502]
[1750761354766,2.3859,143.72,143.59,8.64918502]
[1750761356167,2.3859,143.72,143.58,10.97558502]
[1750761356672,13.13294326,143.69,143.58,10.97558502]
[1750761356971,7.79175111,143.68,143.58,10.97558502]
[1750761357167,2.53849704,143.68,143.58,10.97558502]
[1750761357467,7.79153074,143.67,143.58,2.3264]
[1750761357667,7.79161514,143.66,143.58,2.3264]
[1750761357868,2.53849704,143.66,143.58,2.3264]
[1750761358164,7.87917329,143.68,143.58,2.3264]
[1750761358365,13.13268098,143.67,143.58,2.3264]
[1750761358562,7.79155325,143.66,143.58,2.3264]
[1750761358765,5.25305621,143.65,143.58,2.3264]
[1750761358969,7.87912774,143.67,143.58,2.3264]
[1750761359274,13.13167525,143.66,143.58,2.3264]
[1750761359464,7.79163283,143.65,143.58,2.3264]
[1750761359659,7.87912774,143.68,143.58,2.3264]
[1750761359971,13.13315055,143.67,143.58,2.3264]
[1750761360174,7.7924743,143.66,143.58,2.3264]
[1750761360474,7.87912774,143.68,143.58,2.3264]
[1750761360666,13.13344271,143.67,143.58,2.3264]
[1750761360868,5.34067625,143.69,143.58,10.97558502]
[1750761361072,5.25652033,143.68,143.59,8.64918502]
[1750761361369,2.54015973,143.69,143.6,8.64918502]
[1750761361567,108.89369696,143.7,143.6,8.64918502]
[1750761361777,5.2567331,143.69,143.6,8.64918502]
[1750761361965,108.89369696,143.7,143.6,8.64918502]
[1750761362277,13.1452818,143.69,143.59,8.64918502]
[1750761362569,5.25683415,143.68,143.59,8.64918502]
[1750761362766,5.34852742,143.69,143.59,8.64918502]
[1750761362976,5.25770621,143.68,143.59,8.64918502]
[1750761363176,5.34852742,143.69,143.59,8.64429493]
[1750761363368,5.25791817,143.68,143.59,8.64429493]
[1750761363567,5.34852742,143.69,143.59,8.64429493]
[1750761363768,108.89369696,143.7,143.61,8.64429493]
[1750761364063,2.3859,143.72,143.61,8.64429493]
[1750761364273,13.15315328,143.71,143.61,8.64429493]
[1750761364571,2.54346966,143.7,143.61,8.64429493]
[1750761364877,2.3859,143.72,143.62,2.3172]
[1750761365075,7.89496891,143.71,143.62,2.3172]
[1750761365284,7.89496891,143.7,143.62,2.3172]
[1750761365475,5.3513383,143.71,143.62,2.3172]
[1750761365671,7.8945047,143.7,143.62,2.3172]
[1750761365877,7.89417659,143.69,143.6,8.64429493]
[1750761366076,5.3513383,143.71,143.6,8.64429493]
[1750761366271,7.89438135,143.7,143.6,8.64429493]
[1750761366571,7.89438135,143.69,143.6,8.64429493]
[1750761366878,5.25776734,143.68,143.59,10.88129493]
[1750761367175,7.89435155,143.7,143.59,10.88129493]
[1750761367372,7.82319892,143.69,143.59,10.88129493]
[1750761367569,7.89691317,143.71,143.61,8.64429493]
[1750761367769,13.17823393,143.7,143.61,8.64429493]
[1750761368074,5.28132076,143.69,143.61,8.64429493]
[1750761368273,2.54364341,143.7,143.61,8.64429493]
[1750761368572,2.3859,143.72,143.61,8.64429493]
[1750761368779,13.19197379,143.71,143.61,8.64429493]
[1750761369076,7.84010248,143.7,143.62,2.315]
[1750761369282,7.90008819,143.71,143.62,2.315]
[1750761369476,2.54556906,143.7,143.63,8.64429493]
[1750761369680,13.19480065,143.76,143.66,8.64429493]
[1750761369979,5.29471246,143.75,143.67,2.3519]
[1750761370180,5.35451913,143.77,143.67,2.3519]
[1750761370382,13.20363135,143.76,143.67,2.3519]
[1750761370590,7.90712352,143.78,143.67,2.3519]
[1750761370876,13.01729862,143.77,143.67,2.3519]
[1750761371080,7.66307323,143.76,143.67,2.3519]
[1750761371279,2.54385483,143.75,143.65,8.64429493]
[1750761371474,13.01729862,143.76,143.65,8.64429493]
[1750761371671,2.54385483,143.75,143.64,10.90029493]
[1750761371875,13.01729862,143.77,143.64,10.90029493]
[1750761372181,13.01729862,143.76,143.64,10.90029493]
[1750761372379,13.01729862,143.75,143.64,2.256]
[1750761372566,2.54385483,143.74,143.64,2.256]
[1750761373375,2.54385483,143.73,143.64,2.256]
[1750761373572,2.54385483,143.72,143.64,2.256]
[1750761376881,7.66737729,143.72,143.63,2.2312]
[1750761377086,2.54385483,143.71,143.63,4.5126]
[1750761377283,9.99967729,143.73,143.63,4.5126]
[1750761377483,2.3323,143.73,143.63,4.5126]
[1750761379682,7.67093038,143.74,143.63,4.5126]
[1750761379885,2.413,143.78,143.63,13.15689493]
[1750761380083,13.03403234,143.77,143.63,13.15689493]
[1750761380283,13.03403234,143.76,143.63,13.15689493]
[1750761380479,2.54590951,143.75,143.63,13.15689493]
[1750761380685,7.67093038,143.76,143.63,13.15689493]
[1750761380886,2.54590951,143.76,143.64,8.64429493]
[1750761381083,7.67093038,143.76,143.64,8.64429493]
[1750761381597,2.54590951,143.75,143.64,8.64429493]
[1750761381891,2.54590951,143.75,143.63,13.15689493]
[1750761382282,5.29854487,143.77,143.63,13.15689493]
[1750761382283,2.413,143.78,143.63,13.15689493]
[1750761382490,12.97874667,143.77,143.63,13.15689493]
[1750761382689,7.67894946,143.76,143.63,13.15689493]
[1750761382893,2.54648784,143.75,143.63,13.15689493]
[1750761383694,2.54648784,143.75,143.63,4.5126]
[1750761383884,7.67894946,143.76,143.63,4.5126]
[1750761384384,2.54648784,143.76,143.63,4.5126]
[1750761384590,7.68021194,143.76,143.63,4.5126]
[1750761384791,2.54775032,143.76,143.63,4.5126]
[1750761385288,2.54769983,143.76,143.63,4.5126]
[1750761386391,4.96069983,143.78,143.63,4.5126]
[1750761386591,2.54769983,143.79,143.63,4.5126]
[1750761387990,2.54737248,143.79,143.63,4.5126]
[1750761388493,7.6769825,143.8,143.63,4.5126]
[1750761388794,2.54737248,143.79,143.63,4.5126]
[1750761388992,7.6769825,143.79,143.63,4.5126]
[1750761389194,7.6746378,143.79,143.63,4.5126]
[1750761389381,12.97792408,143.8,143.63,4.5126]
[1750761389587,7.67463624,143.79,143.63,4.5126]
[1750761389887,12.97792408,143.8,143.63,4.5126]
[1750761390087,7.67463624,143.79,143.63,4.5126]
[1750761390396,7.67463624,143.8,143.63,4.5126]
[1750761390587,2.54737248,143.79,143.63,4.5126]
[1750761390895,2.5457867,143.79,143.63,4.5126]
[1750761391292,7.67219893,143.8,143.63,4.5126]
[1750761391488,2.5457867,143.8,143.63,4.5126]
[1750761391688,7.67219893,143.81,143.63,4.5126]
[1750761392103,7.67219893,143.8,143.63,4.5126]
[1750761393610,1.21083488,143.82,143.63,4.5126]
[1750761393903,33.83653322,143.81,143.63,4.5126]
[1750761394105,20.88,143.79,143.63,4.5126]
[1750761394405,42.44495239,143.78,143.67,6.9558]
[1750761394606,2.54271842,143.77,143.67,6.9558]
[1750761394810,6.9543,143.71,143.67,6.9558]
[1750761396704,6.9543,143.71,143.68,6.9553]
[1750761396903,6.9537,143.72,143.63,4.5126]
[1750761397302,4.79401842,143.77,143.68,6.955]
[1750761397602,6.9542,143.71,143.68,6.955]
[1750761398596,6.9537,143.72,143.69,6.9548]
[1750761398799,6.9537,143.72,143.63,4.5126]
[1750761399508,4.79401842,143.77,143.63,4.5126]
[1750761399699,2.2513,143.77,143.63,4.5126]
[1750761399896,2.2513,143.77,143.71,6.9539]
[1750761400099,2.2513,143.77,143.63,4.5126]
[1750761400100,2.54271842,143.8,143.65,13.9135]
[1750761400809,2.54271842,143.81,143.72,6.9534]
[1750761401000,2.54271842,143.8,143.72,6.9534]
[1750761401199,6.9524,143.75,143.72,6.9534]
[1750761401812,6.9525,143.74,143.71,6.9537]
[1750761402409,2.54271842,143.8,143.7,6.9543]
[1750761402611,2.54271842,143.8,143.65,13.9135]
[1750761402808,2.54271842,143.81,143.65,13.9135]
[1750761403108,2.54271842,143.8,143.65,13.9135]
[1750761403312,6.952,143.76,143.72,6.9534]
[1750761404301,6.9521,143.75,143.72,6.9534]
[1750761404505,6.9521,143.75,143.73,6.9529]
[1750761405010,6.9525,143.74,143.71,6.9535]
[1750761405512,6.9525,143.74,143.72,6.9533]
[1750761406211,2.54271842,143.79,143.72,6.9533]
[1750761406410,2.54271842,143.8,143.72,6.9533]
[1750761406611,6.9523,143.75,143.72,6.9533]
[1750761406912,6.9523,143.75,143.71,6.9537]
[1750761407409,6.9527,143.74,143.71,6.9537]
[1750761408307,2.55375164,143.8,143.65,13.9135]
[1750761408510,2.55375164,143.79,143.65,13.9135]
[1750761408814,6.9529,143.74,143.7,6.954]
[1750761409012,7.85746295,143.8,143.71,4.5134]
[1750761409212,6.9527,143.74,143.71,11.4673]
[1750761410305,6.9522,143.75,143.72,6.9534]
[1750761410500,7.8595494,143.8,143.71,4.5134]
[1750761410714,6.9508,143.78,143.75,6.9518]
[1750761410906,2.55590051,143.81,143.72,2.4309]
[1750761411411,6.951,143.78,143.74,6.9522]
[1750761411609,2.55671939,143.81,143.72,2.4309]
[1750761411913,2.3554,143.82,143.72,2.4309]
[1750761412111,4.91219007,143.82,143.72,2.4309]
[1750761412414,2.3554,143.82,143.72,2.4309]
[1750761412616,2.55722985,143.82,143.72,2.4309]
[1750761412909,5.30371131,143.83,143.72,2.4309]
[1750761413110,2.55720726,143.82,143.72,2.4309]
[1750761413310,6.9501,143.79,143.76,6.9515]
[1750761414619,6.9499,143.8,143.77,6.951]
[1750761415516,6.9501,143.79,143.77,6.951]
[1750761416318,113.13023685,143.84,143.72,2.4309]
[1750761416717,6.9498,143.8,143.77,6.9506]
[1750761417117,6.9498,143.8,143.72,2.4309]
[1750761417420,6.9498,143.8,143.78,6.9505]
[1750761417714,6.9494,143.81,143.72,2.4309]
[1750761417919,2.3692,143.86,143.73,13.9059]
[1750761418216,6.9487,143.82,143.73,13.9059]
[1750761418918,6.9484,143.83,143.73,13.9059]
[1750761419118,2.3692,143.86,143.73,13.9059]
[1750761419521,9.3292,143.86,143.73,13.9059]
[1750761419711,8.5590257,143.84,143.75,12.93428078]
[1750761420024,2.3692,143.86,143.77,8.62285385]
[1750761420320,16.44413356,143.9,143.77,8.62285385]
[1750761420526,16.44413356,143.9,143.78,2.3294]
[1750761420824,2.55413356,143.89,143.78,2.3294]
[1750761421718,6.9484,143.83,143.8,6.9493]
[1750761421914,2.55740754,143.89,143.78,2.3294]
[1750761422117,21.52755873,143.9,143.78,2.3294]
[1750761422319,21.52755873,143.9,143.81,6.9488]
[1750761422721,21.52755873,143.9,143.78,2.3294]
[1750761423022,6.9474,143.85,143.82,6.9486]
[1750761423413,6.9477,143.84,143.81,6.9489]
[1750761424218,16.45067104,143.9,143.8,6.9494]
[1750761424412,16.45167104,143.89,143.78,2.3294]
[1750761424618,21.54771943,143.89,143.76,4.5824]
[1750761424817,6.949,143.82,143.78,6.9503]
[1750761425223,6.949,143.82,143.76,4.5824]
[1750761426126,6.949,143.81,143.76,4.5824]
[1750761426324,2.55608617,143.88,143.76,4.5824]
[1750761426718,13.891,143.89,143.8,6.9487]
[1750761426918,16.44708617,143.89,143.8,6.9487]
[1750761427120,6.9473,143.84,143.8,6.9487]
[1750761427427,2.55608617,143.9,143.76,13.20525385]
[1750761427631,6.9458,143.87,143.77,8.62285385]
[1750761427824,6.9458,143.87,143.78,8.62285385]
[1750761428220,6.9462,143.86,143.83,6.9472]
[1750761428425,6.9462,143.86,143.78,8.62285385]
[1750761428626,6.9462,143.86,143.82,6.9476]
[1750761428925,6.9462,143.86,143.78,8.62285385]
[1750761429227,6.9466,143.85,143.82,6.9477]
[1750761430228,13.8885,143.9,143.77,8.62285385]
[1750761430428,4.85698845,143.91,143.76,4.5824]
[1750761430617,13.8893,143.89,143.78,6.9497]
[1750761430816,13.8893,143.89,143.76,4.5824]
[1750761431326,6.9478,143.83,143.76,4.5824]
[1750761431833,6.9478,143.83,143.8,6.9489]
[1750761432220,6.9478,143.83,143.8,6.9487]
[1750761433726,13.8893,143.89,143.79,6.9492]
[1750761433930,13.8893,143.89,143.76,4.5824]
[1750761434331,6.9487,143.81,143.78,6.9496]
[1750761435231,6.949,143.8,143.78,6.9496]
[1750761435430,13.8903,143.88,143.78,6.9496]
[1750761435631,6.9483,143.82,143.78,6.9496]
[1750761435827,13.8903,143.88,143.78,6.9496]
[1750761436132,6.9485,143.81,143.77,6.9502]
[1750761436317,6.9485,143.81,143.76,4.5824]
[1750761436318,13.8903,143.88,143.76,4.5824]
[1750761436825,6.9483,143.82,143.78,6.9496]
[1750761437334,6.9483,143.82,143.76,4.5824]
[1750761437929,13.8903,143.88,143.76,4.5824]
[1750761438427,6.9478,143.83,143.79,6.9492]
[1750761439027,6.9481,143.82,143.79,6.9492]
[1750761440729,13.8903,143.88,143.8,6.9488]
[1750761440730,6.9477,143.83,143.8,6.9488]
[1750761440931,12.96590687,143.9,143.76,4.5824]
[1750761441126,5.09451467,143.9,143.76,13.20525385]
[1750761441432,2.3019,143.91,143.77,8.62285385]
[1750761441433,6.9468,143.85,143.77,8.62285385]
[1750761441931,6.947,143.84,143.81,6.9481]
[1750761442338,6.947,143.84,143.77,8.62285385]
[1750761443436,6.9475,143.83,143.77,8.62285385]
[1750761443734,6.9475,143.83,143.78,8.62285385]
[1750761443932,6.9475,143.83,143.81,6.9481]
[1750761444129,6.9473,143.84,143.81,6.9481]
[1750761445437,6.9473,143.84,143.82,6.9479]
[1750761446037,2.3019,143.91,143.78,8.62285385]
[1750761446231,2.3019,143.91,143.79,8.62285385]
[1750761446436,2.3019,143.91,143.8,2.4217]
[1750761446833,2.3019,143.91,143.81,4.5443]
[1750761447029,110.60649758,143.93,143.82,8.62285385]
[1750761447333,2.3868,143.98,143.89,6.9445]
[1750761447536,13.8792,144.0,143.84,8.62285385]
[1750761447732,6.9434,143.92,143.89,6.9442]
[1750761448133,13.8797,143.99,143.86,4.738]
[1750761448333,6.9438,143.91,143.88,6.9447]
[1750761449636,13.8797,143.99,143.89,6.9446]
[1750761449637,6.9434,143.92,143.89,6.9446]
[1750761450533,6.9428,143.93,143.87,2.2044]
[1750761451333,2.3868,144.01,143.87,2.2044]
[1750761451934,2.3868,144.01,143.87,10.80327075]
[1750761452435,6.9421,143.95,143.92,6.9429]
[1750761454048,13.8788,144.0,143.87,2.2044]
[1750761454430,6.9429,143.93,143.87,2.2044]
[1750761455038,6.9424,143.94,143.9,6.9437]
[1750761455738,6.9424,143.94,143.91,6.9435]
[1750761455938,6.9419,143.95,143.87,2.2044]
[1750761456233,2.3868,144.01,143.87,10.80327075]
[1750761456442,2.3868,144.01,143.87,2.2044]
[1750761456745,2.3868,144.01,143.94,6.9422]
[1750761457038,6.9418,143.95,143.87,10.80327075]
[1750761457435,6.9418,143.95,143.87,2.2044]
[1750761457940,6.9414,143.96,143.93,6.9425]
[1750761458736,6.9407,143.98,143.87,10.80327075]
[1750761459138,6.9398,143.99,143.89,8.59887075]
[1750761459534,2.3018,144.07,143.89,8.59887075]
[1750761459940,13.873,144.06,143.89,8.59887075]
[1750761460136,13.873,144.06,143.9,8.59887075]
[1750761460344,6.9405,143.98,143.95,6.9413]
[1750761461137,6.94,143.99,143.96,6.9412]
[1750761461336,2.3018,144.07,143.93,2.3616]
[1750761461848,6.9401,143.99,143.96,6.941]
[1750761462142,16.1743,144.07,143.93,2.3616]
[1750761462344,6.9396,144.0,143.93,2.3616]
[1750761462839,5.36492162,144.0,143.97,6.9403]
[1750761463040,6.9392,144.01,143.97,6.9403]
[1750761463240,5.36492162,144.06,143.93,2.3616]
[1750761463538,10.48919481,144.06,143.93,2.3616]
[1750761463850,10.59233623,144.06,143.93,2.3616]
[1750761464348,10.59233623,144.05,143.93,2.3616]
[1750761464540,10.59233623,144.06,143.93,2.3616]
[1750761464850,10.59233623,144.05,143.93,2.3616]
[1750761465147,10.59233623,144.06,143.93,2.3616]
[1750761465538,10.59233623,144.06,143.98,6.9399]
[1750761466543,10.59174656,144.06,143.98,6.9399]
[1750761466733,6.939,144.01,143.98,6.9399]
[1750761467349,10.59174656,144.06,143.93,2.3616]
[1750761467744,6.9386,144.02,143.93,2.3616]
[1750761467950,10.59307287,144.06,143.93,2.3616]
[1750761468250,6.9387,144.02,143.93,2.3616]
[1750761468548,6.9387,144.02,143.99,6.9397]
[1750761468748,6.9381,144.03,143.99,6.9397]
[1750761468943,2.3018,144.07,143.93,16.2465]
[1750761469246,6.937,144.05,143.93,16.2465]
[1750761469451,6.937,144.05,144.01,6.9385]
[1750761469751,6.937,144.05,143.93,16.2465]
[1750761469950,6.9374,144.04,143.93,16.2465]
[1750761470146,12.85707857,144.11,143.93,16.2465]
[1750761470350,2.2638,144.11,143.94,13.8844]
[1750761470652,6.9367,144.06,144.03,6.9376]
[1750761472652,6.9367,144.06,144.04,6.9373]
[1750761473147,6.9361,144.07,144.04,6.9373]
[1750761473355,2.2638,144.11,144.05,6.9369]
[1750761473645,6.9357,144.08,144.05,6.9369]
[1750761474049,2.2638,144.11,144.04,6.9372]
[1750761474351,2.2638,144.11,143.96,2.3716]
[1750761474846,2.2638,144.11,144.03,6.9376]
[1750761475052,6.9362,144.07,144.03,6.9376]
[1750761475450,6.9364,144.07,144.03,6.9376]
[1750761475640,2.2638,144.11,143.96,2.3716]
[1750761476051,6.9362,144.07,144.03,6.9376]
[1750761476253,2.2638,144.11,143.96,2.3716]
[1750761476559,6.9372,144.05,144.01,6.9385]
[1750761478154,6.9372,144.05,143.96,2.3716]
[1750761478155,6.9366,144.06,144.02,6.9383]
[1750761478356,2.2638,144.11,144.02,6.9383]
[1750761478754,6.9367,144.06,144.02,6.9383]
[1750761479157,2.2638,144.11,144.02,6.9383]
[1750761479352,2.2638,144.11,143.96,2.3716]
[1750761479353,6.9364,144.07,144.03,6.9377]
[1750761479558,2.2638,144.11,144.03,6.9377]
[1750761480461,2.2638,144.11,144.02,6.9382]
[1750761480664,2.2638,144.11,143.96,2.3716]
[1750761480862,6.9375,144.04,143.96,2.3716]
[1750761481160,10.61672677,144.1,143.96,2.3716]
[1750761481355,6.9382,144.03,143.96,2.3716]
[1750761481558,24.48793351,144.1,143.96,2.3716]